bitfinex/quotes_SOLUSD_20250714
["timestamp","ask_amount","ask_price","bid_price","bid_amount"]
[1752529888731,180.0,162.24,162.23,0.72]
[1752529890442,180.0,162.24,162.23,4.80456237]
[1752529891637,147.9,162.24,162.23,10.96865039]
[1752529893126,32.06,162.27,162.23,10.96865039]
[1752529893325,32.06,162.27,162.25,4.08456237]
[1752529893723,32.06,162.27,162.25,4.80456237]
[1752529894740,0.06,162.28,162.27,26.0]
[1752529894946,0.06,162.28,162.27,30.08456237]
[1752529895137,0.06,162.28,162.27,30.80456237]
[1752529896841,0.06,162.28,162.27,36.96713092]
[1752529904551,0.06,162.35,162.31,26.0]
[1752529904751,0.06,162.35,162.34,4.08456237]
[1752529904945,0.06,162.35,162.34,62.10456237]
[1752529905264,0.06,162.35,162.34,62.82456237]
[1752529906460,0.06,162.35,162.34,68.98447366]
[1752529907036,0.06,162.35,162.34,71.26901164]
[1752529914465,0.06,162.35,162.34,39.24901164]
[1752529914666,0.06,162.35,162.34,71.24901164]
[1752529915765,0.77,162.35,162.29,0.61618091]
[1752529915958,7.13910035,162.35,162.3,6.36910035]
[1752529916164,6.42910035,162.35,162.3,6.36910035]
[1752529916365,0.71,162.34,162.3,6.36910035]
[1752529918050,6.8700379,162.34,162.31,6.36910035]
[1752529918254,0.65,162.33,162.31,6.36910035]
[1752529922276,0.65,162.33,162.29,6.84178498]
[1752529922574,0.65,162.33,162.31,6.36910035]
[1752529923472,6.8104322,162.33,162.3,6.36910035]
[1752529923676,0.65,162.32,162.3,6.36910035]
[1752529924053,0.65,162.32,162.29,6.36910035]
[1752529925172,0.65,162.32,162.28,6.87192772]
[1752529925358,0.65,162.32,162.29,6.36910035]
[1752529927685,0.65,162.31,162.29,6.36910035]
[1752529928776,0.65,162.31,162.28,0.03]
[1752529929081,0.65,162.31,162.28,6.39910035]
[1752529929971,6.81111276,162.31,162.28,6.39910035]
[1752529930167,0.65,162.3,162.28,6.39910035]
[1752529930370,6.81080832,162.32,162.29,7.04910035]
[1752529930968,0.65,162.32,162.29,7.04910035]
[1752529933083,0.65,162.32,162.29,6.36910035]
[1752529933275,31.96,162.33,162.3,7.04910035]
[1752529933580,32.61,162.33,162.3,7.04910035]
[1752529935272,0.65,162.33,162.3,7.04910035]
[1752529938388,0.65,162.33,162.31,6.36910035]
[1752529938776,147.96,162.34,162.31,7.04910035]
[1752529938977,147.96,162.34,162.33,6.36910035]
[1752529939384,147.96,162.34,162.33,7.04910035]
[1752529940262,147.96,162.34,162.33,13.20939111]
[1752529941573,0.06,162.34,162.33,13.20939111]
[1752529944779,0.06,162.34,162.33,6.84029076]
[1752529944987,0.06,162.34,162.33,13.20939111]
[1752529945897,0.06,162.34,162.33,45.10939111]
[1752529951099,0.06,162.34,162.33,42.81735049]
[1752529966595,0.06,162.34,162.33,38.74029076]
[1752529966794,0.06,162.34,162.33,42.81735049]
[1752529974503,0.06,162.34,162.33,42.73735049]
[1752529977306,0.77,162.34,162.33,37.98029076]
[1752529977508,0.77,162.34,162.33,42.05735049]
[1752529977709,0.06,162.34,162.33,42.05735049]
[1752529978299,0.77,162.34,162.33,42.05735049]
[1752529979100,0.06,162.34,162.33,42.05735049]
[1752529981598,0.06,162.34,162.33,42.71735049]
[1752529982122,0.06,162.34,162.33,43.33337956]
[1752529983328,0.06,162.34,162.33,39.25631983]
[1752529983531,0.06,162.34,162.33,43.33337956]
[1752529984316,0.06,162.34,162.33,39.25631983]
[1752529984517,0.06,162.34,162.33,43.33337956]
[1752529996427,0.06,162.38,162.34,16.78468397]
[1752529996622,0.06,162.38,162.37,30.07705973]
[1752529996816,0.06,162.4,162.39,4.07705973]
[1752529997135,0.06,162.4,162.39,52.78110011]
[1752529997332,0.06,162.4,162.39,53.44110011]
[1752529997529,0.06,162.4,162.39,37.13286119]
[1752529998232,0.06,162.4,162.39,43.29087584]
[1752529998616,0.06,162.4,162.39,76.38379873]
[1752529999438,0.06,162.42,162.39,91.77883537]
[1752529999625,0.06,162.42,162.41,4.07705973]
[1752529999830,0.06,162.42,162.41,36.45278536]
[1752530000033,0.06,162.42,162.41,43.27004168]
[1752530007645,0.06,162.42,162.41,11.51004168]
[1752530007843,0.06,162.42,162.41,43.25004168]
[1752530012954,0.06,162.42,162.41,41.97431605]
[1752530013533,0.06,162.42,162.41,42.68431605]
[1752530013860,0.06,162.42,162.41,10.94431605]
[1752530014152,0.06,162.42,162.41,42.66431605]
[1752530014356,0.06,162.42,162.41,41.95431605]
[1752530014767,0.06,162.42,162.41,42.66431605]
[1752530017762,0.78,162.42,162.41,41.95431605]
[1752530018430,0.06,162.42,162.41,41.95431605]
[1752530019730,0.06,162.42,162.41,42.66431605]
[1752530020352,0.06,162.42,162.41,41.95431605]
[1752530021264,0.06,162.42,162.41,42.66431605]
[1752530021561,0.78,162.42,162.4,4.07705973]
[1752530021943,0.78,162.42,162.41,4.07705973]
[1752530025837,0.06,162.42,162.41,10.23431605]
[1752530029840,0.06,162.42,162.41,41.93431605]
[1752530037160,0.06,162.42,162.41,42.60431605]
[1752530038976,0.06,162.42,162.41,43.22004168]
[1752530038977,1e-08,162.42,162.41,43.22004168]
[1752530039281,1e-08,162.42,162.41,69.22004168]
[1752530041768,0.06,162.45,162.41,101.39786646]
[1752530042086,0.06,162.45,162.44,4.07705973]
[1752530042281,0.06,162.45,162.44,35.73705973]
[1752530042684,0.06,162.45,162.44,36.40705973]
[1752530043867,0.06,162.45,162.44,42.56317891]
[1752530048674,0.06,162.45,162.44,38.48611918]
[1752530048972,0.06,162.45,162.44,42.56317891]
[1752530050083,0.06,162.45,162.44,41.89317891]
[1752530051597,0.06,162.45,162.44,42.56317891]
[1752530054896,0.06,162.45,162.44,41.89317891]
[1752530055280,0.06,162.45,162.44,42.56317891]
[1752530064401,0.06,162.45,162.44,10.90317891]
[1752530064600,0.06,162.45,162.44,42.52317891]
[1752530069211,0.06,162.45,162.44,68.52317891]
[1752530069413,0.06,162.45,162.44,69.13879082]
[1752530070496,0.06,162.45,162.44,68.52317891]
[1752530071409,0.06,162.45,162.44,68.50317891]
[1752530079521,0.77,162.45,162.44,6.15611918]
[1752530080231,0.77,162.45,162.44,10.23317891]
[1752530082628,0.06,162.45,162.44,10.23317891]
[1752530082826,0.06,162.45,162.44,36.91317891]
[1752530096330,0.06,162.45,162.44,68.47317891]
[1752530096536,0.06,162.45,162.44,69.08879082]
[1752530097435,0.06,162.45,162.44,68.47317891]
[1752530101037,0.06,162.45,162.44,36.91317891]
[1752530101547,0.06,162.45,162.44,68.47317891]
[1752530101723,0.06,162.45,162.44,36.91317891]
[1752530101919,0.06,162.45,162.44,68.47317891]
[1752530103144,0.06,162.45,162.44,68.45317891]
[1752530105024,0.06,162.46,162.44,59.85347479]
[1752530105226,0.06,162.49,162.45,63.82998262]
[1752530105525,0.06,162.49,162.48,46.38529865]
[1752530105732,0.1,162.51,162.5,42.78468397]
[1752530106038,0.06,162.52,162.51,6.15346747]
[1752530106242,0.1,162.55,162.52,42.78468397]
[1752530106548,0.1,162.55,162.54,30.07705973]
[1752530106753,0.1,162.55,162.54,58.15523317]
[1752530106924,0.1,162.55,162.54,62.8922929]
[1752530107250,0.1,162.55,162.54,79.20053182]
[1752530107437,0.06,162.57,162.54,79.20053182]
[1752530107638,0.06,162.57,162.56,46.38529865]
[1752530107852,0.06,162.57,162.56,57.34073619]
[1752530108048,0.06,162.57,162.56,26.46073619]
[1752530108347,0.75,162.57,162.56,10.22863453]
[1752530108879,0.06,162.57,162.56,10.88863453]
[1752530109041,0.06,162.57,162.56,13.16433973]
[1752530109934,0.06,162.57,162.56,70.02433973]
[1752530110366,0.06,162.57,162.56,70.68433973]
[1752530110530,0.06,162.57,162.56,38.50433973]
[1752530110841,0.75,162.57,162.56,32.35276493]
[1752530111039,0.75,162.57,162.56,6.35276493]
[1752530117363,0.06,162.57,162.56,6.35276493]
[1752530117550,0.06,162.57,162.56,44.02433973]
[1752530117940,0.06,162.57,162.56,44.68433973]
[1752530118341,0.06,162.57,162.56,51.03710466]
[1752530119267,0.06,162.57,162.56,44.68433973]
[1752530122875,0.06,162.57,162.56,51.03710466]
[1752530128360,0.06,162.57,162.56,61.03710466]
[1752530129085,0.06,162.57,162.56,51.03710466]
[1752530129372,0.06,162.57,162.56,61.03710466]
[1752530129579,0.06,162.57,162.56,51.03710466]
[1752530129749,0.06,162.57,162.56,61.03710466]
[1752530129946,0.06,162.57,162.56,51.03710466]
[1752530130150,0.06,162.57,162.56,61.03710466]
[1752530131058,0.06,162.57,162.56,67.82178863]
[1752530131264,0.06,162.57,162.56,77.82178863]
[1752530131954,0.1,162.59,162.58,26.0]
[1752530132263,0.1,162.59,162.58,64.44784673]
[1752530132468,0.1,162.59,162.58,65.16784673]
[1752530132773,0.06,162.62,162.61,42.78468397]
[1752530133079,0.06,162.62,162.61,84.32248629]
[1752530133371,0.06,162.62,162.61,84.83940465]
[1752530133548,0.06,162.62,162.61,91.19216958]
[1752530144980,0.06,162.62,162.61,88.90157007]
[1752530146775,0.06,162.64,162.62,16.78468397]
[1752530146986,0.06,162.64,162.63,72.13705812]
[1752530147179,0.06,162.64,162.63,72.85705812]
[1752530147380,0.06,162.64,162.63,79.1057198]
[1752530147681,0.06,162.64,162.63,89.1057198]
[1752530148380,0.06,162.64,162.63,79.1057198]
[1752530148575,0.06,162.64,162.63,89.1057198]
[1752530148781,0.06,162.64,162.63,74.94381971]
[1752530148983,0.06,162.64,162.63,87.63404059]
[1752530154098,0.06,162.64,162.63,56.17404059]
[1752530154275,0.06,162.64,162.63,87.61404059]
[1752530154898,0.06,162.64,162.63,74.92381971]
[1752530155191,0.06,162.64,162.63,87.61404059]
[1752530157089,0.06,162.64,162.63,104.39872456]
[1752530158989,0.79,162.67,162.63,119.77104209]
[1752530159182,0.79,162.67,162.66,32.34511044]
[1752530159383,0.79,162.67,162.66,63.76511044]
[1752530160295,0.79,162.67,162.66,69.91290338]
[1752530161010,0.1,162.67,162.66,70.59290338]
[1752530162418,0.06,162.71,162.66,102.7470697]
[1752530162577,0.06,162.71,162.7,6.34511044]
[1752530162904,0.06,162.71,162.7,37.76511044]
[1752530163105,0.06,162.71,162.7,38.44511044]
[1752530163791,0.06,162.71,162.7,44.59139193]
[1752530166007,0.06,162.71,162.7,49.38597262]
[1752530166799,0.1,162.74,162.73,26.0]
[1752530167102,0.1,162.74,162.73,63.76511044]
[1752530167406,0.1,162.74,162.73,64.44511044]
[1752530167988,0.1,162.74,162.73,70.59025884]
[1752530168403,0.1,162.74,162.73,71.20477368]
[1752530170788,1e-08,162.74,162.73,87.98945765]
[1752530170993,0.43,162.8,162.73,113.35232866]
[1752530171197,0.43,162.8,162.79,6.34511044]
[1752530171916,0.43,162.8,162.79,12.4879939]
[1752530172694,0.43,162.8,162.79,6.14288346]
[1752530172894,0.43,162.8,162.79,12.4879939]
[1752530174534,0.43,162.8,162.77,37.74511044]
[1752530175016,0.49,162.8,162.77,37.74511044]
[1752530176019,0.49,162.8,162.77,12.48864094]
[1752530179223,0.49,162.8,162.76,32.14376673]
[1752530179406,0.49,162.8,162.77,6.34511044]
[1752530179608,0.49,162.8,162.76,12.48887717]
[1752530183533,0.49,162.8,162.77,6.34511044]
[1752530184435,0.49,162.8,162.79,6.34511044]
[1752530192254,0.06,162.8,162.79,6.34511044]
[1752530193060,0.76,162.8,162.79,6.34511044]
[1752530193443,0.06,162.8,162.79,6.34511044]
[1752530193840,0.06,162.8,162.78,6.14299252]
[1752530194037,0.06,162.8,162.79,6.34511044]
[1752530194848,0.76,162.8,162.79,6.34511044]
[1752530195158,0.06,162.8,162.79,6.34511044]
[1752530195359,0.06,162.8,162.78,6.14299252]
[1752530195561,0.76,162.8,162.79,6.34511044]
[1752530198355,0.76,162.8,162.76,6.34511044]
[1752530198553,23.12979441,162.77,162.7,11.79789509]
[1752530198751,6.34511044,162.74,162.69,6.34511044]
[1752530198976,7.04511044,162.73,162.68,6.34511044]
[1752530199147,32.06,162.72,162.68,6.34511044]
[1752530199463,0.7,162.71,162.68,6.34511044]
[1752530199955,0.7,162.71,162.68,12.49212021]
[1752530200158,0.7,162.7,162.68,12.49212021]
[1752530201869,0.7,162.71,162.68,12.49212021]
[1752530203051,148.6,162.76,162.7,6.34511044]
[1752530203245,148.6,162.76,162.73,6.34511044]
[1752530203656,0.7,162.75,162.73,6.34511044]
[1752530210373,0.7,162.75,162.72,12.49059143]
[1752530210870,0.7,162.75,162.72,13.15059143]
[1752530211661,148.6,162.76,162.72,13.15059143]
[1752530212370,0.7,162.75,162.72,13.15059143]
[1752530214174,148.6,162.76,162.72,13.15059143]
[1752530218483,148.6,162.76,162.72,13.18059143]
[1752530218679,148.6,162.76,162.73,6.85502989]
[1752530220780,148.6,162.76,162.73,13.20014033]
[1752530221083,148.6,162.76,162.72,6.17541284]
[1752530221084,0.67,162.75,162.72,6.17541284]
[1752530221287,6.34511044,162.73,162.72,0.03]
[1752530221517,37.68511044,162.73,162.72,0.03]
[1752530221664,38.35511044,162.73,162.72,0.03]
[1752530221868,32.01,162.73,162.72,0.03]
[1752530222182,38.35511044,162.73,162.72,0.03]
[1752530224285,32.01,162.73,162.72,0.03]
[1752530233400,31.34,162.73,162.72,0.03]
[1752530233697,32.01,162.73,162.72,0.03]
[1752530235178,38.35511044,162.73,162.72,0.03]
[1752530235701,44.50025884,162.73,162.72,0.03]
[1752530240090,16.78468397,162.69,162.66,0.03]
[1752530240295,23.12979441,162.67,162.66,0.03]
[1752530240502,54.46979441,162.67,162.66,0.03]
[1752530240710,48.79468397,162.67,162.66,0.03]
[1752530241086,52.85968308,162.67,162.66,0.03]
[1752530241799,59.00709809,162.67,162.66,0.03]
[1752530242988,61.29362457,162.67,162.66,0.03]
[1752530243619,69.21272457,162.67,162.66,0.03]
[1752530244307,75.56425016,162.67,162.65,0.03]
[1752530244505,23.80620956,162.66,162.65,0.03]
[1752530244908,30.15773515,162.66,162.65,0.03]
[1752530245313,16.78468397,162.62,162.61,0.03]
[1752530245500,54.47620956,162.62,162.61,0.03]
[1752530245701,61.29551468,162.62,162.61,0.03]
[1752530249321,44.51083071,162.62,162.61,0.03]
[1752530250221,38.15930512,162.62,162.61,0.03]
[1752530250601,6.35152559,162.62,162.61,0.03]
[1752530250800,31.34,162.62,162.61,0.7]
[1752530251199,31.34,162.63,162.61,0.7]
[1752530251638,31.34,162.63,162.61,0.03]
[1752530251798,31.34,162.63,162.62,0.67]
[1752530254542,32.14755899,162.67,162.62,7.02152559]
[1752530254703,147.9,162.64,162.62,12.50081881]
[1752530255027,147.9,162.64,162.63,0.67]
[1752530256214,147.9,162.64,162.63,7.02152559]
[1752530260629,147.9,162.64,162.63,0.67]
[1752530264222,147.9,162.64,162.63,7.02152559]
[1752530273650,147.9,162.64,162.63,0.67]
[1752530273822,147.9,162.64,162.63,7.02152559]
[1752530275253,147.9,162.64,162.62,6.14921346]
[1752530275254,147.9,162.64,162.62,6.35152559]
[1752530275444,147.9,162.64,162.63,6.35152559]
[1752530275635,147.9,162.64,162.62,7.02152559]
[1752530275836,6.35152559,162.63,162.61,0.03]
[1752530276024,37.67152559,162.62,162.61,0.03]
[1752530276424,38.35152559,162.62,162.61,0.03]
[1752530276651,32.0,162.62,162.61,0.03]
[1752530280557,38.14930512,162.62,162.61,0.03]
[1752530281135,32.0,162.62,162.61,0.03]
[1752530287873,31.32,162.62,162.61,0.7]
[1752530288664,31.32,162.62,162.61,0.03]
[1752530289963,147.9,162.64,162.61,7.05152559]
[1752530290162,31.3,162.63,162.61,7.05152559]
[1752530290341,31.3,162.63,162.62,7.02152559]
[1752530291769,31.3,162.63,162.62,13.17083071]
[1752530292170,147.9,162.64,162.62,13.17083071]
[1752530292356,179.2,162.64,162.63,6.35152559]
[1752530292554,147.9,162.64,162.63,7.02152559]
[1752530293057,0.06,162.65,162.63,7.02152559]
[1752530293375,0.06,162.65,162.64,7.02152559]
[1752530293758,0.06,162.65,162.64,13.17007453]
[1752530305178,0.06,162.65,162.64,7.02152559]
[1752530305367,0.06,162.65,162.64,13.17007453]
[1752530306994,0.06,162.65,162.64,10.88155657]
[1752530310893,0.06,162.65,162.64,6.81854894]
[1752530311094,0.06,162.65,162.64,10.88155657]
[1752530311693,0.06,162.65,162.61,0.03]
[1752530311895,4.78300763,162.65,162.61,0.75]
[1752530312097,0.06,162.65,162.61,0.75]
[1752530312278,0.06,162.65,162.61,4.81300763]
[1752530312588,0.06,162.65,162.62,0.72]
[1752530313497,0.06,162.65,162.62,6.86927739]
[1752530313693,0.06,162.65,162.63,0.72]
[1752530315609,0.06,162.65,162.62,4.78300763]
[1752530315904,0.06,162.65,162.63,0.72]
[1752530317194,0.06,162.65,162.64,0.72]
[1752530321584,0.06,162.65,162.64,10.93155657]
[1752530323005,0.06,162.65,162.64,27.71624054]
[1752530324410,0.06,162.65,162.64,58.99624054]
[1752530325208,0.06,162.65,162.64,84.99624054]
[1752530325505,1e-08,162.65,162.64,75.24827106]
[1752530332197,0.06,162.72,162.67,26.0]
[1752530332392,0.06,162.72,162.71,4.06300763]
[1752530334313,0.06,162.72,162.71,10.20891138]
[1752530336404,0.06,162.72,162.71,10.87891138]
[1752530337605,0.06,162.72,162.71,10.20891138]
[1752530338287,0.06,162.72,162.71,10.87891138]
[1752530342003,0.06,162.72,162.71,4.73300763]
[1752530342204,0.06,162.72,162.71,10.87891138]
[1752530342523,0.06,162.72,162.71,4.73300763]
[1752530342724,0.78,162.72,162.7,4.06300763]
[1752530342921,0.06,162.72,162.7,4.06300763]
[1752530343108,0.06,162.72,162.7,4.73300763]
[1752530344522,0.06,162.72,162.71,4.06300763]
[1752530345097,0.06,162.72,162.7,6.81603428]
[1752530345298,0.06,162.72,162.7,10.87904191]
[1752530346337,0.06,162.72,162.7,6.81603428]
[1752530346511,0.06,162.72,162.7,10.87904191]
[1752530346828,0.06,162.72,162.71,4.73300763]
[1752530348438,0.06,162.72,162.71,0.67]
[1752530348610,0.06,162.72,162.7,10.87904191]
[1752530350535,0.06,162.72,162.64,0.67]
[1752530350536,4.78300763,162.71,162.64,0.67]
[1752530350731,4.78300763,162.71,162.62,0.67]
[1752530350732,4.06300763,162.68,162.62,0.67]
[1752530350935,0.72,162.7,162.65,0.03]
[1752530350936,4.06300763,162.67,162.65,0.03]
[1752530351135,0.72,162.66,162.65,0.03]
[1752530356657,7.06986858,162.66,162.65,0.03]
[1752530357749,0.72,162.66,162.65,0.03]
[1752530358048,7.06986858,162.66,162.65,0.03]
[1752530358537,13.21766152,162.66,162.65,0.03]
[1752530358743,44.45766152,162.66,162.65,0.03]
[1752530359130,46.12036152,162.66,162.65,0.03]
[1752530359435,69.10974549,162.66,162.65,0.03]
[1752530360244,95.10974549,162.66,162.65,0.03]
[1752530360544,42.78468397,162.64,162.61,0.03]
[1752530360726,55.48442113,162.64,162.61,0.03]
[1752530360927,56.20442113,162.64,162.61,0.03]
[1752530361432,87.44442113,162.64,162.61,0.03]
[1752530362234,42.78468397,162.62,162.61,0.03]
[1752530362436,80.37455255,162.62,162.61,0.03]
[1752530362745,81.09455255,162.62,162.61,0.03]
[1752530363321,87.24385767,162.62,162.61,0.03]
[1752530371163,90.44848978,162.62,162.61,0.03]
[1752530371334,73.66380581,162.62,162.61,0.03]
[1752530373660,90.44848978,162.62,162.61,0.03]
[1752530379065,88.16720362,162.62,162.61,0.03]
[1752530384158,88.16720362,162.62,162.61,1e-08]
[1752530384847,48.93474547,162.6,162.59,0.03]
[1752530385047,86.53387783,162.6,162.59,0.03]
[1752530385369,16.78468397,162.58,162.57,0.2]
[1752530385572,80.38381633,162.58,162.57,0.2]
[1752530385759,81.05381633,162.58,162.57,0.2]
[1752530386939,87.20463438,162.58,162.57,0.2]
[1752530390070,61.20463438,162.58,162.57,0.2]
[1752530391182,64.40980076,162.58,162.57,0.2]
[1752530400992,70.76893312,162.58,162.57,1e-08]
[1752530401179,42.78468397,162.55,162.54,1e-08]
[1752530401495,42.78468397,162.51,162.5,0.03]
[1752530401672,80.38381633,162.51,162.5,0.03]
[1752530402092,16.78468397,162.5,162.49,0.2]
[1752530402274,23.84381633,162.5,162.49,0.2]
[1752530402688,29.99766248,162.5,162.49,0.2]
[1752530403399,36.35679484,162.5,162.48,1e-08]
[1752530403573,44.65826472,162.49,162.48,1e-08]
[1752530403974,61.44294869,162.49,162.47,1e-08]
[1752530404205,30.20294869,162.48,162.47,1e-08]
[1752530404900,23.63928761,162.48,162.47,1e-08]
[1752530405070,61.23841997,162.48,162.47,1e-08]
[1752530405584,67.59755233,162.48,162.47,1e-08]
[1752530405981,37.39460364,162.48,162.47,1e-08]
[1752530406176,69.753736,162.48,162.47,0.71000001]
[1752530407599,63.59913236,162.48,162.47,0.71000001]
[1752530407774,63.39460364,162.48,162.47,0.71000001]
[1752530407980,69.753736,162.48,162.47,0.71000001]
[1752530408174,69.753736,162.48,162.47,1e-08]
[1752530408379,70.453736,162.48,162.47,1e-08]
[1752530408675,93.59755233,162.48,162.47,1e-08]
[1752530408877,67.59755233,162.48,162.47,1e-08]
[1752530411076,42.78468397,162.45,162.44,0.2]
[1752530411291,80.38381633,162.45,162.44,0.2]
[1752530411498,16.78468397,162.44,162.41,0.03]
[1752530411801,6.35913236,162.42,162.41,0.03]
[1752530412898,37.59913236,162.42,162.41,0.74]
[1752530413109,43.75600959,162.42,162.41,0.74]
[1752530414282,43.75600959,162.42,162.41,0.03]
[1752530414483,37.39687723,162.42,162.41,0.74]
[1752530414682,43.75600959,162.42,162.41,0.74]
[1752530415397,43.75600959,162.42,162.41,0.03]
[1752530415910,43.75600959,162.42,162.41,0.74]
[1752530416210,60.54069356,162.42,162.41,0.03]
[1752530416400,60.54069356,162.42,162.38,0.91]
[1752530416401,16.78468397,162.39,162.38,0.2]
[1752530416728,54.38381633,162.39,162.38,0.2]
[1752530417010,55.08381633,162.39,162.38,0.2]
[1752530418397,61.24183098,162.39,162.38,0.2]
[1752530419002,26.0,162.36,162.35,0.03]
[1752530419307,63.61913236,162.36,162.35,0.03]
[1752530419609,81.10381633,162.36,162.35,0.03]
[1752530421017,87.26296883,162.36,162.35,0.03]
[1752530421310,164.68468397,162.35,162.33,0.03]
[1752530421497,86.76294869,162.34,162.33,0.03]
[1752530421903,81.10381633,162.34,162.33,0.03]
[1752530422920,87.26372762,162.34,162.33,0.03]
[1752530423786,93.62285998,162.34,162.33,0.03]
[1752530425305,93.62285998,162.34,162.28,0.03]
[1752530425306,26.0,162.31,162.28,0.03]
[1752530425607,6.35913236,162.29,162.28,0.03]
[1752530426922,49.81381633,162.29,162.28,0.03]
[1752530427218,55.97562543,162.29,162.28,0.03]
[1752530428799,29.97562543,162.29,162.28,0.03]
[1752530429822,22.94649307,162.29,162.28,0.03]
[1752530430125,29.30562543,162.29,162.28,0.03]
[1752530430827,22.94649307,162.29,162.28,0.7]
[1752530430997,38.52069818,162.3,162.28,0.7]
[1752530431191,31.3,162.29,162.28,0.7]
[1752530431393,37.4618091,162.29,162.28,0.03]
[1752530431611,43.82094146,162.29,162.28,0.03]
[1752530431893,43.82094146,162.29,162.28,0.7]
[1752530433505,37.65913236,162.29,162.28,0.7]
[1752530433705,43.82094146,162.29,162.28,0.7]
[1752530436204,37.4618091,162.29,162.28,0.7]
[1752530436406,43.82094146,162.29,162.28,0.7]
[1752530440118,61.27562543,162.29,162.28,0.03]
[1752530441938,61.27562543,162.29,162.28,1e-08]
[1752530443029,16.78468397,162.28,162.26,1e-08]
[1752530443233,37.63913236,162.27,162.26,1e-08]
[1752530443631,38.30913236,162.27,162.26,1e-08]
[1752530444142,44.47170091,162.27,162.26,1e-08]
[1752530445641,61.25638488,162.27,162.26,1e-08]
[1752530449254,54.89725252,162.27,162.26,1e-08]
[1752530449548,61.25638488,162.27,162.26,1e-08]
[1752530450948,16.78468397,162.23,162.21,0.7]
[1752530451153,37.63913236,162.22,162.21,0.03]
[1752530451333,37.63913236,162.22,162.21,0.7]
[1752530451738,37.63913236,162.22,162.21,0.03]
[1752530451936,31.28,162.22,162.21,0.03]
[1752530452137,43.80360036,162.22,162.21,0.7]
[1752530452550,191.70360036,162.22,162.21,0.7]
[1752530454142,26.0,162.19,162.1,6.16903146]
[1752530454342,16.78468397,162.17,162.11,0.67]
[1752530454549,37.65913236,162.16,162.11,0.67]
[1752530455044,6.35913236,162.15,162.11,0.67]
[1752530455247,31.3,162.14,162.11,0.67]
[1752530455650,31.3,162.13,162.11,0.67]
[1752530456448,31.3,162.13,162.11,7.02913236]
[1752530456646,31.3,162.13,162.12,0.7]
[1752530457049,31.3,162.13,162.12,7.05913236]
[1752530457253,37.4680171,162.13,162.09,1.5763]
[1752530457454,37.4680171,162.13,162.12,0.7]
[1752530457455,31.3,162.13,162.12,0.7]
[1752530459056,37.46788996,162.13,162.12,0.7]
[1752530459645,43.82702232,162.13,162.12,0.7]
[1752530460241,48.95295438,162.12,162.11,0.03]
[1752530460443,55.31208674,162.12,162.11,0.03]
[1752530461349,55.31208674,162.12,162.11,0.73]
[1752530461872,154.25913236,162.16,162.11,0.73]
[1752530461873,147.9,162.16,162.11,0.73]
[1752530462050,26.0,162.13,162.11,0.73]
[1752530462251,31.34,162.12,162.11,0.73]
[1752530470260,37.50827041,162.12,162.11,0.73]
[1752530470888,191.76740277,162.12,162.11,0.73]
[1752530471989,179.24,162.12,162.11,0.73]
[1752530472884,31.34,162.12,162.11,0.73]
[1752530473469,31.34,162.12,162.11,7.08913236]
[1752530473688,31.34,162.13,162.11,0.73]
[1752530475586,37.5080575,162.13,162.11,0.73]
[1752530476491,37.5080575,162.13,162.11,0.03]
[1752530476824,37.5080575,162.13,162.12,0.7]
[1752530477291,37.5080575,162.13,162.11,0.73]
[1752530477891,6.35913236,162.12,162.11,0.73]